fUST/lending_fUST_20240621
["ID","MTS","AMOUNT","RATE_DAILY","PERIOD"]
[330000126,1718911840426,-18250.0294781,0.0005,120]
[330000127,1718911840439,-1001.78735967,0.0005,120]
[330000128,1718911840451,-46158.81200846,0.0005,120]
[330000131,1718911840991,-58265.75806637,0.0005,120]
[330000133,1718911841005,-20661.66059686,0.0005,120]
[330000134,1718911841018,-30978.38293164,0.0005,120]
[330000135,1718911841412,-5827.20854559,0.0005,120]
[330000136,1718911841423,-302.0,0.0005,120]
[330000137,1718911841436,-11234.8113557,0.0005,120]
[330000138,1718911841445,-166.058918,0.00050068,2]
[330000139,1718911841454,-166.148551,0.00050068,2]
[330000140,1718911841463,-5827.126918,0.00051,85]
[330000141,1718911841473,-152.8918158,0.00051014,60]
[330000142,1718911841482,-335.2,0.00051208,60]
[330000143,1718911841491,-335.2,0.00051588,60]
[330000144,1718911841501,-152.8918158,0.00051874,60]
[330000145,1718911841510,-152.8918158,0.00051936,60]
[330000146,1718911841518,-335.2,0.00051967,60]
[330000147,1718911841527,-150.5,0.00051977,62]
[330000148,1718911841536,-303.0,0.00051977,62]
[330000149,1718911841548,-671.0,0.00051977,62]
[330000150,1718911841560,-150.5,0.00051987,62]
[330000151,1718911841569,-303.0,0.00051987,62]
[330000152,1718911841579,-671.0,0.00051987,62]
[330000153,1718911841588,-150.5,0.00051997,62]
[330000154,1718911841599,-303.0,0.00051997,62]
[330000155,1718911841608,-671.0,0.00051997,62]
[330000156,1718911841618,-153.0,0.00052007,7]
[330000157,1718911841627,-153.0,0.00052007,7]
[330000158,1718911841639,-153.0,0.00052007,7]
[330000159,1718911841649,-153.0,0.00052007,7]
[330000160,1718911841658,-153.0,0.00052007,7]
[330000161,1718911841667,-153.0,0.00052007,7]
[330000162,1718911841677,-153.0,0.00052007,7]
[330000163,1718911841689,-153.0,0.00052007,7]
[330000164,1718911841699,-153.0,0.00052007,7]
[330000165,1718911841709,-153.0,0.00052007,7]
[330000166,1718911841718,-153.0,0.00052007,7]
[330000167,1718911841728,-153.0,0.00052007,7]
[330000168,1718911841738,-153.0,0.00052007,7]
[330000169,1718911841748,-153.0,0.00052007,7]
[330000170,1718911841757,-153.0,0.00052007,7]
[330000171,1718911841767,-153.0,0.00052007,7]
[330000172,1718911841776,-153.0,0.00052007,7]
[330000173,1718911841786,-153.0,0.00052007,7]
[330000174,1718911841796,-153.0,0.00052007,7]
[330000175,1718911841806,-153.0,0.00052007,7]
[330000176,1718911841816,-153.0,0.00052007,7]
[330000177,1718911841826,-153.0,0.00052007,7]
[330000178,1718911841836,-153.0,0.00052007,7]
[330000179,1718911841846,-153.0,0.00052007,7]
[330000180,1718911841856,-153.0,0.00052007,7]
[330000181,1718911841866,-153.0,0.00052007,7]
[330000182,1718911841876,-153.0,0.00052007,7]
[330000183,1718911841886,-153.0,0.00052007,7]
[330000184,1718911841895,-153.0,0.00052007,7]
[330000185,1718911841905,-153.0,0.00052007,7]
[330000186,1718911841915,-153.0,0.00052007,7]
[330000187,1718911841925,-153.0,0.00052007,7]
[330000188,1718911841938,-153.0,0.00052007,7]
[330000189,1718911841947,-153.0,0.00052007,7]
[330000190,1718911841957,-153.0,0.00052007,7]
[330000191,1718911841967,-153.0,0.00052007,7]
[330000192,1718911841976,-153.0,0.00052007,7]
[330000193,1718911841986,-153.0,0.00052007,7]
[330000194,1718911841996,-153.0,0.00052007,7]
[330000195,1718911842006,-153.0,0.00052007,7]
[330000196,1718911842015,-153.0,0.00052007,7]
[330000197,1718911842025,-153.0,0.00052007,7]
[330000198,1718911842035,-153.0,0.00052007,7]
[330000199,1718911842044,-153.0,0.00052007,7]
[330000200,1718911842054,-153.0,0.00052007,7]
[330000201,1718911842063,-153.0,0.00052007,7]
[330000202,1718911842073,-153.0,0.00052007,7]
[330000203,1718911842082,-153.0,0.00052007,7]
[330000204,1718911842092,-153.0,0.00052007,7]
[330000205,1718911842101,-153.0,0.00052007,7]
[330000206,1718911842111,-153.0,0.00052007,7]
[330000207,1718911842121,-153.0,0.00052007,7]
[330000208,1718911842130,-153.0,0.00052007,7]
[330000209,1718911842140,-153.0,0.00052007,7]
[330000210,1718911842149,-153.0,0.00052007,7]
[330000211,1718911842158,-152.8918158,0.00052087,60]
[330000212,1718911842168,-13573.38103598,0.000521,120]
[330000213,1718911842178,-335.2,0.00052347,90]
[330000214,1718911842188,-335.2,0.00052726,90]
[330000215,1718911842197,-152.0,0.00052726,90]
[330000216,1718911842207,-26688.0,0.000529,120]
[330000217,1718911842216,-292.0,0.00053,120]
[330000218,1718911842226,-335.2,0.00053106,90]
[330000219,1718911842236,-152.0,0.00053106,90]
[330000220,1718911842246,-238.08187166,0.00053326,4]
[330000221,1718911842256,-152.8918158,0.00053327,60]
[330000222,1718911842266,-152.8918158,0.00053439,60]
[330000223,1718911842276,-152.8918158,0.00053696,60]
[330000224,1718911842286,-292.0,0.00053699,120]
[330000225,1718911842296,-1000.02833333,0.00054,120]
[330000226,1718911842307,-2131.81524543,0.00054,120]
[330000227,1718911842317,-152.8918158,0.00054176,60]
[330000228,1718911842327,-14595.57,0.000543,120]
[330000229,1718911842336,-8866.0,0.000543,120]
[330000230,1718911842346,-2002.72538669,0.00054358,4]
[330000231,1718911842356,-9222.53014539,0.00054359,120]
[330000232,1718911842370,-713.95701685,0.00054359,120]
[330000276,1718911843927,-0.00134802,0.0004999,3]
[330000277,1718911843942,-909.8,0.0004999,3]
[330000278,1718911843954,-339.525,0.0004999,3]
[330000303,1718911846969,-941.18894748,0.0004999,3]
[330000304,1718911846982,-824.9147045,0.0004999,3]
[330000305,1718911846992,-40063.51283776,0.00054359,120]
[330000306,1718911847002,-1294.57979264,0.00054379,2]
[330000307,1718911847012,-810.36844653,0.00054693,4]
[330000308,1718911847022,-2000.0,0.00054694,2]
[330000309,1718911847031,-4304.96337745,0.00054694,5]
[330000310,1718911847043,-35563.67871295,0.00054694,5]
[330000324,1718912840211,-300.0,0.00018996,2]
[330000325,1718912840232,-1003.38088922,0.00019177,2]
[330000326,1718912951152,-606.08628442,0.00019077,2]
[330000327,1718912951173,-574.03084119,0.00019078,2]
[330000381,1718913032888,-1831.01628513,0.00017806,2]
[330000383,1718913032900,-1821.20639829,0.00017806,2]
[330000391,1718913032960,-1000.67071177,0.00017806,2]
[330000428,1718913038651,-3128.3688431,0.00017806,2]
[330000429,1718913038664,-6500.29944995,0.00017806,2]
[330000430,1718913038676,-27874.41154803,0.00017806,2]
[330000431,1718913038686,-150.0,0.000189,2]
[330000432,1718913038696,-3000.0,0.000191,2]
[330000433,1718913038706,-500.0,0.00019178,2]
[330000434,1718913038715,-500.0,0.00019178,2]
[330000436,1718913038725,-430.70350808,0.00019178,2]
[330000438,1718913038735,-2593.7518855,0.00019435,2]
[330000440,1718913038745,-606.08628442,0.00020611,2]
[330000441,1718913038754,-165.084734,0.00020921,2]
[330000443,1718913038764,-1787.6759608,0.00021,2]
[330000445,1718913038774,-166.039797,0.00021096,2]
[330000447,1718913038783,-166.148551,0.00021096,2]
[330000448,1718913038794,-500.0,0.00021517,2]
[330000449,1718913038803,-499.50553001,0.00021517,2]
[330000451,1718913038813,-500.0,0.00021517,2]
[330000452,1718913038822,-500.0,0.00021517,2]
[330000454,1718913038832,-239.79665947,0.00021517,2]
[330000456,1718913038842,-24900.0,0.00021518,2]
[330000457,1718913038852,-166.666666,0.00021918,2]
[330000458,1718913038861,-10378.01713238,0.00021999,2]
[330000459,1718913038871,-1111.54141959,0.00022,2]
[330000460,1718913038881,-606.08628442,0.00022145,2]
[330000461,1718913038895,-841.84632534,0.000223,2]
[330000462,1718913038906,-166.666666,0.00022431,2]
[330000463,1718913038915,-10819.3231061,0.00022897,2]
[330000464,1718913038927,-166.666666,0.00022944,2]
[330000465,1718913038936,-166.666666,0.00023456,2]
[330000466,1718913038946,-606.08628442,0.00023679,2]
[330000467,1718913038956,-150.0,0.000239,2]
[330000468,1718913038967,-166.666666,0.00023969,2]
[330000469,1718913038979,-1304.49573149,0.00024,30]
[330000470,1718913038989,-166.666666,0.00024482,2]
[330000471,1718913038998,-928.65264186,0.00025089,2]
[330000472,1718913039009,-16809.4960106,0.0002509,2]
[330000473,1718913039019,-606.08628442,0.00025213,2]
[330000474,1718913039030,-501.49218306,0.00027397,2]
[330000475,1718913039040,-726.30535293,0.0002799,2]
[330000476,1718913039052,-1500.41840367,0.0002824,2]
[330000477,1718913039062,-1929.25,0.00028518,3]
[330000478,1718913039071,-2191.32,0.00028518,3]
[330000479,1718913039081,-3015.76060786,0.00028528,120]
[330000480,1718913039091,-100188.12808672,0.00028528,7]
[330000481,1718913039101,-5001.07044385,0.00028528,2]
[330000482,1718913039110,-28085.67829193,0.00028528,2]
[330000483,1718913039121,-213.0,0.0002874,62]
[330000484,1718913039130,-470.0,0.0002874,62]
[330000485,1718913039142,-213.52,0.0002874,62]
[330000486,1718913039151,-296.0,0.0002874,62]
[330000487,1718913039161,-150.5,0.0002874,62]
[330000488,1718913039171,-150.5,0.0002874,62]
[330000489,1718913039181,-213.0,0.0002875,62]
[330000490,1718913039191,-470.0,0.0002875,62]
[330000491,1718913039201,-150.5,0.0002875,62]
[330000492,1718913039211,-150.5,0.0002875,62]
[330000493,1718913039220,-150.5,0.0002875,62]
[330000494,1718913039230,-150.5,0.0002875,62]
[330000495,1718913039239,-213.0,0.0002876,62]
[330000496,1718913039249,-470.0,0.0002876,62]
[330000497,1718913039259,-150.5,0.0002876,62]
[330000498,1718913039268,-150.5,0.0002876,62]
[330000499,1718913039278,-150.5,0.0002876,62]
[330000500,1718913039288,-150.5,0.0002876,62]
[330000501,1718913039298,-150.95,0.0002876,62]
[330000502,1718913039307,-69417.02131581,0.0002877,2]
[330000503,1718913039324,-23157.15924401,0.0002877,2]
[330000504,1718913039334,-150.21603203,0.0003,7]
[330000505,1718913039343,-4416.4532624,0.00032,120]
[330000593,1718913043949,-183.41032708,0.00032,120]
[330000686,1718913046833,-37.78204556,0.00032,120]
[330000688,1718913046842,-153.0,0.00033303,2]
[330000690,1718913046852,-584.9466086,0.00033303,2]
[330000692,1718913046861,-323.5556165,0.00033303,2]
[330000693,1718913046870,-205.6359469,0.00033303,2]
[330000695,1718913046879,-205.6359469,0.00033303,2]
[330000697,1718913046890,-205.6359469,0.00033303,2]
[330000700,1718913046900,-5364.55244064,0.00034,2]
[330000702,1718913046916,-3095.52393131,0.00034,2]
[330000713,1718913047022,-1539.92362805,0.00034,2]
[330000716,1718913047031,-153.0,0.00034125,2]
[330000718,1718913047041,-153.0,0.00034125,2]
[330000720,1718913047052,-153.0,0.00034125,2]
[330000722,1718913047061,-153.0,0.00034125,2]
[330000724,1718913047070,-153.0,0.00034125,2]
[330000726,1718913047079,-153.0,0.00034125,2]
[330000728,1718913047088,-153.0,0.00034125,2]
[330000730,1718913047097,-153.0,0.00034125,2]
[330000731,1718913047107,-153.0,0.00034125,2]
[330000733,1718913047116,-153.0,0.00034125,2]
[330000736,1718913047126,-153.0,0.00034125,2]
[330000737,1718913047135,-153.0,0.00034125,2]
[330000740,1718913047146,-153.0,0.00034125,2]
[330000742,1718913047156,-10335.12733816,0.00035,2]
[330000744,1718913047164,-398.38552761,0.00035,2]
[330000745,1718913047174,-30283.22583931,0.00036,30]
[330000748,1718913047183,-151.87451588,0.00037541,7]
[330000749,1718913047192,-166.039797,0.00037652,2]
[330000751,1718913047201,-1826.1,0.0003799,3]
[330000753,1718913047210,-19186.8742331,0.00038,30]
[330000756,1718913047226,-500.0,0.00038,30]
[330001210,1718914027112,-300.0,0.00019999,2]
[330001211,1718914027134,-66.36328734,0.00019999,2]
[330001262,1718914232685,-300.0,0.00019999,2]
[330001263,1718914232694,-521.93899784,0.00019999,2]
[330001264,1718914232703,-222.31894884,0.00019999,2]
[330001265,1718914232712,-484.35742863,0.0002,2]
[330001312,1718914237982,-3610.48679481,0.0002,2]
[330001314,1718914237994,-47465.05694804,0.0002,2]
[330001316,1718914238006,-18402.16898099,0.0002,2]
[330001318,1718914238017,-13424.45309166,0.0002,2]
[330001319,1718914238029,-9318.66960121,0.0002,2]
[330001320,1718914238040,-23390.85138318,0.0002,2]
[330001321,1718914238050,-333.8176056,0.00020796,2]
[330001323,1718914238059,-2364.42782195,0.00020896,2]
[330001325,1718914238069,-166.066985,0.00021096,2]
[330001326,1718914238078,-273.14461243,0.00024241,2]
[330001327,1718914238088,-162.083266,0.00025491,2]
[330001328,1718914238097,-333.81760557,0.00025572,2]
[330001329,1718914238107,-161.672502,0.0002569,2]
[330001330,1718914238116,-1526.8414083,0.00026617,2]
[330001331,1718914238125,-920.6956282,0.0002914,2]
[330001332,1718914238134,-333.81760557,0.00030348,2]
[330001333,1718914238144,-151.87451588,0.00031103,7]
[330001334,1718914238153,-24900.0,0.00033485,2]
[330001335,1718914238164,-333.81760557,0.00035124,2]
[330001336,1718914238173,-166.066985,0.00037652,2]
[330001337,1718914238183,-1521.75,0.0003799,3]
[330001338,1718914238194,-30313.17137934,0.00038,30]
[330001339,1718914238204,-333.81760557,0.000399,2]
[330001340,1718914238214,-499.999999,0.0004,2]
[330001341,1718914238224,-24533.52155657,0.0004,7]
[330001342,1718914238233,-2925.04928804,0.0004,4]
[330001343,1718914238243,-160.0,0.0004,2]
[330001344,1718914238252,-151.87451588,0.00040051,30]
[330001345,1718914238262,-151.87451588,0.0004025,30]
[330001346,1718914238271,-329.0,0.0004247,62]
[330001347,1718914238281,-150.5,0.0004247,62]
[330001348,1718914238290,-155.0,0.0004247,62]
[330001349,1718914238300,-329.0,0.0004248,62]
[330001350,1718914238310,-150.5,0.0004248,62]
[330001351,1718914238320,-155.0,0.0004248,62]
[330001352,1718914238329,-329.0,0.0004249,62]
[330001353,1718914238339,-150.5,0.0004249,62]
[330001354,1718914238348,-155.0,0.0004249,62]
[330001355,1718914238358,-44091.7438898,0.00042499,14]
[330001356,1718914238372,-155.25,0.00042499,7]
[330001357,1718914238381,-500.0,0.00042499,10]
[330001358,1718914238390,-6763.70456573,0.000425,15]
[330001359,1718914238400,-173.35286255,0.000425,15]
[330001360,1718914238410,-156385.50174171,0.000425,60]
[330001361,1718914238422,-12830.0,0.000425,60]
[330001362,1718914238433,-8170.990182,0.000425,60]
[330001401,1718914240380,-1373.60129679,0.000425,60]
[330001402,1718914240391,-74948.01675298,0.000425,60]
[330001403,1718914240403,-14235.6,0.000425,60]
[330001404,1718914240416,-72219.07475162,0.000425,60]
[330001405,1718914240429,-146876.46024647,0.000425,60]
[330001428,1718914243216,-641.75,0.000425,60]
[330001429,1718914243228,-432.4407645,0.000425,60]
[330001430,1718914243239,-2902.6938867,0.000425,60]
[330001548,1718914246382,-1268.12,0.0004249,3]
[330001550,1718914246392,-30826.88,0.000425,60]
[330001552,1718914246405,-2997.5,0.000425,60]
[330001555,1718914246416,-10297.72574271,0.000425,60]
[330001557,1718914246463,-2417.27003271,0.000425,60]
[330001558,1718914246475,-54750.0,0.000425,60]
[330001577,1718915158110,-166.066985,0.00021096,2]
[330001578,1718915158131,-770.7894087,0.00024165,2]
[330001579,1718915158151,-164.0434323,0.00024741,2]
[330001580,1718915158172,-152.1322124,0.00024841,2]
[330001581,1718915158192,-300.0,0.0002504,2]
[330001582,1718915158211,-300.0,0.0002504,2]
[330001583,1718915158231,-25980.918,0.00025041,30]
[330001584,1718915158251,-24716.10594437,0.00025699,2]
[330001588,1718915254113,-164.0434323,0.00025699,2]
[330001593,1718915371113,-166.066985,0.00021096,2]
[330001594,1718915371136,-19.85062333,0.00025699,2]
[330001595,1718915371158,-5.38390017,0.00026186,2]
[330001646,1718915432436,-771.33610754,0.00023599,2]
[330001649,1718915432446,-639.42572857,0.00024178,2]
[330001661,1718915432534,-620.97128643,0.00025387,2]
[330001663,1718915432544,-159.77465283,0.00026186,2]
[330001665,1718915432554,-771.33610754,0.00028599,2]
[330001667,1718915432563,-151.87451588,0.00032991,7]
[330001669,1718915432572,-771.33610754,0.00033599,2]
[330001671,1718915432581,-246.4698829,0.00033753,7]
[330001673,1718915432591,-24900.0,0.00033754,2]
[330001675,1718915432600,-162.2985451,0.00034373,2]
[330001677,1718915432609,-250.0,0.00034693,2]
[330001679,1718915432618,-151.87451588,0.00035492,7]
[330001681,1718915432627,-240.0,0.00038999,3]
[330001683,1718915432637,-1302.91494926,0.00039,30]
[330001685,1718915432645,-7874.4114629,0.00041096,2]
[330001687,1718915432654,-1000.0,0.00042,42]
[330001689,1718915432664,-795.7,0.0004249,3]
[330001691,1718915432673,-813.64,0.0004249,3]
[330001693,1718915432682,-543.58277102,0.00042499,31]
[330001694,1718915432692,-500.0,0.00042499,31]
[330001697,1718915432701,-511.79530367,0.00042499,31]
[330001699,1718915432711,-17828.47743439,0.000425,60]
[330001781,1718915438308,-1151.04962128,0.000425,60]
[330001782,1718915438325,-5227.77005502,0.000425,60]
[330001783,1718915438341,-2556.28832406,0.000425,60]
[330001784,1718915438357,-1784.75558405,0.000425,60]
[330001785,1718915438373,-31541.13620455,0.000425,60]
[330001786,1718915438390,-48136.52113994,0.000425,60]
[330001867,1718915443594,-29784.13966848,0.000425,60]
[330001868,1718915443606,-1699.97832797,0.000425,60]
[330001889,1718915446520,-2002.74062318,0.000425,60]
[330001890,1718915446612,-43579.78591134,0.000425,60]
[330001893,1718915446622,-1348.95409405,0.000427,2]
[330001896,1718915446632,-2388.89626844,0.000428,28]
[330001899,1718915446641,-219.0,0.00043,90]
[330001902,1718915446651,-219.0,0.00043014,90]
[330001905,1718915446661,-151.0,0.00043351,5]
[330001908,1718915446671,-175.51084099,0.00044,120]
[330001910,1718915446681,-150.5,0.00044414,62]
[330001912,1718915446690,-230.0,0.00044414,62]
[330001914,1718915446699,-230.0,0.00044424,62]
[330001916,1718915446709,-150.5,0.00044424,62]
[330001918,1718915446718,-788.54,0.00044434,3]
[330001920,1718915446729,-230.0,0.00044434,62]
[330001922,1718915446738,-150.5,0.00044434,62]
[330001924,1718915446748,-1075.84434736,0.00044443,4]
[330001926,1718915446758,-67115.16449374,0.00044444,2]
[330001928,1718915446771,-219.0,0.00044877,90]
[330001930,1718915446780,-152.0,0.00047034,60]
[330001932,1718915446790,-151.0,0.00047045,60]
[330001934,1718915446800,-221.0,0.00047121,90]
[330001936,1718915446810,-152.0,0.00047426,60]
[330001938,1718915446820,-152.0,0.00047818,60]
[330001939,1718915446829,-160.0,0.000479,2]
[330001940,1718915446839,-150.5,0.0004797,62]
[330001942,1718915446851,-237.26,0.0004798,62]
[330001944,1718915446861,-150.5,0.0004798,62]
[330001946,1718915446871,-150.5,0.0004799,62]
[330001948,1718915446880,-150.5,0.0004799,62]
[330001950,1718915446890,-13556.65070867,0.00048,30]
[330001951,1718915446899,-152.0,0.00048211,60]
[330001952,1718915446908,-152.0,0.00048603,60]
[330001953,1718915446918,-152.0,0.00048995,60]
[330001954,1718915446928,-470.855467,0.00049,120]
[330001955,1718915446937,-151.0,0.00049362,60]
[330001956,1718915446948,-152.0,0.00049387,60]
[330001957,1718915446959,-152.0,0.00049779,60]
[330001958,1718915446969,-5877.42109548,0.00049897,120]
[330001959,1718915446980,-3381.85228286,0.000499,61]
[330001960,1718915446990,-220.99864281,0.000499,20]
[330001961,1718915446999,-5000.0,0.000499,120]
[330001962,1718915447009,-4278.7600275,0.0004999,120]
[330001963,1718915447019,-15062.84838107,0.0005,4]
[330001964,1718915447029,-1000.0,0.0005,50]
[330001965,1718915447039,-46179.9911751,0.0005,120]
[330001966,1718915447048,-60234.78,0.0005,30]
[330001967,1718915447058,-166.066985,0.00050068,2]
[330001968,1718915447068,-152.0,0.00050172,60]
[330001969,1718915447078,-219.0,0.00050262,120]
[330001970,1718915447088,-152.0,0.00050564,60]
[330001971,1718915447099,-152.0,0.00050956,60]
[330001972,1718915447110,-150.0,0.00050989,60]
[330001973,1718915447120,-1000.0,0.00051,51]
[330001974,1718915447129,-150.0,0.00051,85]
[330001975,1718915447138,-152.0,0.00051348,60]
[330001976,1718915447148,-151.0,0.00051679,60]
[330001977,1718915447158,-335.2,0.0005174,60]
[330001978,1718915447171,-152.0,0.0005174,60]
[330001979,1718915447181,-1000.0,0.00052,52]
[330001980,1718915447191,-153.0,0.00052007,7]
[330001981,1718915447200,-153.0,0.00052007,7]
[330001982,1718915447210,-153.0,0.00052007,7]
[330001983,1718915447219,-153.0,0.00052007,7]
[330001984,1718915447228,-153.0,0.00052007,7]
[330001985,1718915447239,-153.0,0.00052007,7]
[330001986,1718915447248,-153.0,0.00052007,7]
[330001987,1718915447258,-153.0,0.00052007,7]
[330001988,1718915447268,-153.0,0.00052007,7]
[330001989,1718915447277,-153.0,0.00052007,7]
[330001990,1718915447287,-153.0,0.00052007,7]
[330001991,1718915447297,-153.0,0.00052007,7]
[330001992,1718915447307,-153.0,0.00052007,7]
[330001993,1718915447316,-153.0,0.00052007,7]
[330001994,1718915447325,-153.0,0.00052007,7]
[330001995,1718915447335,-153.0,0.00052007,7]
[330001996,1718915447345,-153.0,0.00052007,7]
[330001997,1718915447354,-153.0,0.00052007,7]
[330001998,1718915447363,-153.0,0.00052007,7]
[330001999,1718915447373,-153.0,0.00052007,7]
[330002000,1718915447383,-153.0,0.00052007,7]
[330002001,1718915447392,-153.0,0.00052007,7]
[330002002,1718915447402,-153.0,0.00052007,7]
[330002003,1718915447411,-153.0,0.00052007,7]
[330002004,1718915447420,-153.0,0.00052007,7]
[330002005,1718915447430,-153.0,0.00052007,7]
[330002006,1718915447439,-153.0,0.00052007,7]
[330002007,1718915447449,-153.0,0.00052007,7]
[330002008,1718915447459,-153.0,0.00052007,7]
[330002009,1718915447578,-153.0,0.00052007,7]
[330002010,1718915447588,-153.0,0.00052007,7]
[330002011,1718915447597,-153.0,0.00052007,7]
[330002012,1718915447607,-153.0,0.00052007,7]
[330002013,1718915447616,-153.0,0.00052007,7]
[330002014,1718915447625,-153.0,0.00052007,7]
[330002015,1718915447634,-153.0,0.00052007,7]
[330002016,1718915447643,-153.0,0.00052007,7]
[330002017,1718915447652,-153.0,0.00052007,7]
[330002018,1718915447661,-153.0,0.00052007,7]
[330002019,1718915447671,-153.0,0.00052007,7]
[330002020,1718915447680,-153.0,0.00052007,7]
[330002021,1718915447689,-153.0,0.00052007,7]
[330002022,1718915447699,-153.0,0.00052007,7]
[330002023,1718915447708,-153.0,0.00052007,7]
[330002024,1718915447718,-153.0,0.00052007,7]
[330002025,1718915447727,-153.0,0.00052007,7]
[330002026,1718915447736,-153.0,0.00052007,7]
[330002027,1718915447746,-153.0,0.00052007,7]
[330002028,1718915447757,-153.0,0.00052007,7]
[330002029,1718915447771,-153.0,0.00052007,7]
[330002030,1718915447780,-153.0,0.00052007,7]
[330002031,1718915447790,-153.0,0.00052007,7]
[330002032,1718915447799,-153.0,0.00052007,7]
[330002033,1718915447812,-153.0,0.00052007,7]
[330002034,1718915447821,-153.0,0.00052007,7]
[330002035,1718915447832,-153.0,0.00052007,7]
[330002036,1718915447843,-335.2,0.00052133,90]
[330002037,1718915447856,-152.0,0.00052133,90]
[330002038,1718915447866,-3809.2136136,0.000522,120]
[330002039,1718915447875,-335.2,0.00052525,90]
[330002040,1718915447884,-152.0,0.00052525,90]
[330002041,1718915447895,-600.0,0.000528,2]
[330002042,1718915447907,-112877.76191098,0.0005289,120]
[330002043,1718915447916,-26688.0,0.000529,120]
[330002044,1718915447927,-335.2,0.00052917,90]
[330002045,1718915447937,-152.0,0.00052917,90]
[330002046,1718915447949,-1000.0,0.00053,53]
[330002047,1718915447959,-2984.02009143,0.00053,120]
[330002048,1718915447969,-249.21399496,0.00053,120]
[330002049,1718915447978,-50000.0,0.0005328,120]
[330002050,1718915447988,-151.0,0.0005328,14]
[330002051,1718915447998,-151.41147,0.0005328,14]
[330002052,1718915448009,-424.638446,0.0005328,14]
[330002053,1718915448021,-424.638446,0.0005328,14]
[330002054,1718915448033,-212.816923,0.0005328,14]
[330002055,1718915448043,-151.0,0.0005328,14]
[330002056,1718915448052,-1425.142895,0.0005328,14]
[330002057,1718915448062,-1425.142895,0.0005328,14]
[330002058,1718915448072,-151.0,0.0005328,14]
[330002059,1718915448081,-151.0,0.0005328,14]
[330002060,1718915448090,-151.0,0.0005328,14]
[330002061,1718915448099,-151.0,0.0005328,14]
[330002062,1718915448109,-337.421357,0.0005328,14]
[330002063,1718915448120,-337.421357,0.0005328,14]
[330002064,1718915448129,-151.0,0.0005328,14]
[330002065,1718915448139,-151.0,0.0005328,14]
[330002066,1718915448149,-492.43731,0.0005328,14]
[330002067,1718915448159,-492.43731,0.0005328,14]
[330002068,1718915448169,-171.529515,0.0005328,14]
[330002069,1718915448179,-171.529515,0.0005328,14]
[330002070,1718915448189,-151.0,0.0005328,14]
[330002071,1718915448198,-269.543652,0.0005328,14]
[330002072,1718915448209,-151.0,0.0005328,14]
[330002073,1718915448220,-974.726377,0.0005328,14]
[330002074,1718915448230,-974.726377,0.0005328,14]
[330002075,1718915448239,-151.0,0.0005328,14]
[330002076,1718915448250,-875.720636,0.0005328,14]
[330002077,1718915448259,-875.720636,0.0005328,14]
[330002078,1718915448268,-151.0,0.0005328,14]
[330002079,1718915448278,-1451.120756,0.0005328,14]
[330002080,1718915448287,-1451.120756,0.0005328,14]
[330002081,1718915448296,-1489.598609,0.0005328,14]
[330002082,1718915448306,-1489.598609,0.0005328,14]
[330002083,1718915448316,-151.0,0.0005328,14]
[330002084,1718915448325,-1000.0,0.0005328,10]
[330002085,1718915448334,-1000.0,0.0005328,10]
[330002086,1718915448343,-1000.0,0.0005328,10]
[330002087,1718915448353,-1000.0,0.0005328,10]
[330002088,1718915448362,-1058.663555,0.0005328,10]
[330002089,1718915448371,-151.0,0.0005328,14]